bitfinex-derivatives/quotes_BTCF0:USTF0_20251228
["timestamp","ask_amount","ask_price","bid_price","bid_amount"]
[1766963314581,0.02508457,87788.0,87773.0,0.00227862]
[1766963314786,0.15416,87795.0,87773.0,0.00227862]
[1766963315090,0.0113994,87785.0,87773.0,0.00227862]
[1766963315675,0.0113997,87783.0,87773.0,0.00227862]
[1766963315879,0.0001709,87788.0,87773.0,0.00227862]
[1766963316082,0.02503701,87787.0,87773.0,0.00227862]
[1766963316282,0.0001709,87788.0,87773.0,0.00227862]
[1766963316491,0.02503062,87787.0,87773.0,0.00227862]
[1766963316791,0.0113995,87784.0,87773.0,0.00227862]
[1766963319189,0.0001709,87788.0,87773.0,0.00227862]
[1766963319385,0.15416,87787.0,87773.0,0.00227862]
[1766963321193,0.0113993,87786.0,87773.0,0.00227862]
[1766963322393,0.15416,87787.0,87773.0,0.00227862]
[1766963326382,0.0001709,87788.0,87773.0,0.00227862]
[1766963326594,0.17916279,87787.0,87773.0,0.00227862]
[1766963326795,0.15416,87787.0,87773.0,0.00227862]
[1766963330697,0.0001709,87788.0,87773.0,0.00227862]
[1766963330898,0.17916362,87787.0,87773.0,0.00227862]
[1766963331083,0.15416,87787.0,87773.0,0.00227862]
[1766963332199,0.02500659,87786.0,87773.0,0.00227862]
[1766963332388,0.15416,87787.0,87773.0,0.00227862]
[1766963332584,0.02500659,87786.0,87773.0,0.00227862]
[1766963332790,0.15416,87787.0,87773.0,0.00227862]
[1766963332991,0.02500659,87786.0,87773.0,0.00227862]
[1766963333191,0.15416,87787.0,87773.0,0.00227862]
[1766963333499,0.02500872,87786.0,87773.0,0.00227862]
[1766963333688,0.15416,87787.0,87773.0,0.00227862]
[1766963333889,0.02500872,87786.0,87773.0,0.00227862]
[1766963334095,0.15416,87787.0,87773.0,0.00227862]
[1766963334293,0.02500872,87786.0,87773.0,0.00227862]
[1766963334491,0.15416,87787.0,87773.0,0.00227862]
[1766963334697,0.02501133,87786.0,87773.0,0.00227862]
[1766963334999,0.0001709,87788.0,87773.0,0.00227862]
[1766963335194,0.05724,87787.0,87777.0,0.0114003]
[1766963335698,0.05724,87787.0,87774.0,0.0114008]
[1766963337001,0.05724,87787.0,87773.0,0.00227862]
[1766963337404,0.02502156,87786.0,87773.0,0.00227862]
[1766963337600,0.05724,87787.0,87773.0,0.01367952]
[1766963338209,0.02502442,87786.0,87773.0,0.01367952]
[1766963338504,0.05724,87787.0,87773.0,0.01367952]
[1766963338705,0.02502442,87786.0,87773.0,0.01367952]
[1766963338906,0.05724,87787.0,87773.0,0.01367952]
[1766963339206,0.02502444,87786.0,87773.0,0.01367952]
[1766963339406,0.05724,87787.0,87773.0,0.01367952]
[1766963339591,0.02502763,87786.0,87773.0,0.01367952]
[1766963339790,0.05724,87787.0,87773.0,0.01367952]
[1766963340002,0.02502762,87786.0,87773.0,0.01367952]
[1766963340191,0.05724,87787.0,87773.0,0.01367952]
[1766963340395,0.02503055,87786.0,87773.0,0.01367952]
[1766963340598,0.05724,87787.0,87773.0,0.01367952]
[1766963340799,0.02503055,87786.0,87773.0,0.00227862]
[1766963340999,0.05724,87787.0,87773.0,0.00227862]
[1766963342208,0.02503901,87786.0,87777.0,0.0114004]
[1766963342501,0.05724,87787.0,87773.0,0.00227862]
[1766963342709,0.03643882,87786.0,87773.0,0.00227862]
[1766963342907,0.02503952,87785.0,87773.0,0.00227862]
[1766963343312,0.02503952,87784.0,87773.0,0.00227862]
[1766963343506,0.05724,87787.0,87773.0,0.00227862]
[1766963343712,0.02504862,87786.0,87773.0,0.00227862]
[1766963343900,0.02504862,87785.0,87773.0,0.00227862]
[1766963344094,0.02504862,87784.0,87773.0,0.00227862]
[1766963344295,0.02504862,87783.0,87773.0,0.01367952]
[1766963344511,0.05724,87787.0,87773.0,0.01367952]
[1766963344712,0.02506187,87786.0,87773.0,0.01367952]
[1766963345010,0.02506187,87785.0,87773.0,0.01367952]
[1766963345307,0.02506187,87784.0,87773.0,0.01367952]
[1766963345495,0.02506187,87783.0,87773.0,0.01367952]
[1766963345700,0.05724,87787.0,87773.0,0.01367952]
[1766963345902,0.02506456,87786.0,87773.0,0.01367952]
[1766963346098,0.02506456,87785.0,87773.0,0.01367952]
[1766963346295,0.02506456,87784.0,87773.0,0.01367952]
[1766963346510,0.02506456,87783.0,87773.0,0.01367952]
[1766963346811,0.05724,87787.0,87773.0,0.01367952]
[1766963347001,0.02506436,87786.0,87773.0,0.01367952]
[1766963347202,0.02506436,87785.0,87773.0,0.01367952]
[1766963347502,0.02506436,87784.0,87776.0,0.0114005]
[1766963347702,0.05724,87787.0,87776.0,0.0114005]
[1766963348004,0.05724,87787.0,87773.0,0.00227862]
[1766963350006,0.05724,87787.0,87774.0,0.0114008]
[1766963350308,0.05724,87787.0,87773.0,0.01367942]
[1766963351209,0.05724,87787.0,87776.0,0.0114005]
[1766963356814,0.05724,87787.0,87777.0,0.0114004]
[1766963359614,0.02495613,87786.0,87777.0,0.0114004]
[1766963359814,0.02495613,87785.0,87777.0,0.0114004]
[1766963360017,3e-08,87784.0,87779.0,0.0114001]
[1766963360315,0.05724,87787.0,87779.0,0.0114001]
[1766963360705,0.05724,87787.0,87776.0,0.0114005]
[1766963360906,0.05724,87797.0,87787.0,0.0113991]
[1766963361100,0.09692,87806.0,87791.0,0.0113985]
[1766963361307,0.05724,87805.0,87791.0,0.0113985]
[1766963361505,0.07034014,87805.0,87791.0,0.0113985]
[1766963361705,0.05724,87805.0,87790.0,0.10292812]
[1766963362202,0.05724,87804.0,87790.0,0.10292812]
[1766963362408,0.05724,87804.0,87791.0,0.0113986]
[1766963363013,0.05724,87804.0,87790.0,0.10292812]
[1766963363513,0.05724,87804.0,87790.0,0.11432672]
[1766963363716,0.0113964,87809.0,87790.0,0.11432672]
[1766963363917,0.15416,87808.0,87790.0,0.11432672]
[1766963366516,0.15416,87808.0,87789.0,0.0001709]
[1766963366703,0.0113994,87786.0,87766.0,0.05724]
[1766963366903,0.10292812,87780.0,87766.0,0.05724]
[1766963367118,0.0113998,87782.0,87766.0,0.05724]
[1766963367316,0.10292812,87780.0,87766.0,0.05724]
[1766963367617,0.10292812,87780.0,87765.0,0.05724]
[1766963367818,0.0115707,87782.0,87765.0,0.05724]
[1766963368320,0.10292812,87780.0,87765.0,0.05724]
[1766963370819,0.0001709,87782.0,87765.0,0.05724]
[1766963371621,0.0114002,87779.0,87756.0,0.0114031]
[1766963371921,0.05724,87778.0,87760.0,0.10292812]
[1766963372711,0.05724,87778.0,87760.0,0.10309902]
[1766963373919,0.05724,87778.0,87761.0,0.05724]
[1766963375518,0.10292812,87780.0,87762.0,0.0114024]
[1766963375706,0.0001709,87782.0,87762.0,0.0114024]
[1766963375707,0.05724,87779.0,87762.0,0.0114024]
[1766963377111,0.05724,87779.0,87765.0,0.0114019]
[1766963378526,0.05724,87780.0,87765.0,0.0114019]
[1766963379616,0.0001709,87782.0,87765.0,0.0114019]
[1766963379814,0.05724,87786.0,87770.0,0.10292812]
[1766963380020,0.02480853,87785.0,87770.0,0.10292812]
[1766963380220,0.02480853,87784.0,87770.0,0.10292812]
[1766963380527,0.05724,87786.0,87770.0,0.10292812]
[1766963380720,0.02480762,87785.0,87769.0,0.0114014]
[1766963380921,0.02480762,87784.0,87769.0,0.0114014]
[1766963381122,0.05724,87786.0,87765.0,0.0114019]
[1766963381420,0.05724,87786.0,87767.0,0.0114016]
[1766963381421,0.02480762,87785.0,87767.0,0.0114016]
[1766963381623,0.02480762,87784.0,87767.0,0.0114016]
[1766963381812,0.02480679,87783.0,87767.0,0.0114016]
[1766963382017,0.02480679,87782.0,87767.0,0.0114016]
[1766963382316,0.05724,87786.0,87767.0,0.0114016]
[1766963382616,0.024806,87785.0,87767.0,0.0114016]
[1766963382816,0.024806,87784.0,87767.0,0.0114016]
[1766963383017,0.024806,87783.0,87767.0,0.0114016]
[1766963383217,0.024806,87782.0,87767.0,0.0114016]
[1766963383419,0.05724,87786.0,87767.0,0.0114016]
[1766963383626,0.02480531,87785.0,87767.0,0.0114016]
[1766963383827,0.02480531,87784.0,87767.0,0.0114016]
[1766963384033,0.02480531,87783.0,87767.0,0.0114016]
[1766963384324,0.02480531,87782.0,87767.0,0.0114016]
[1766963384524,0.05724,87786.0,87767.0,0.0114016]
[1766963384729,0.02480465,87785.0,87767.0,0.0114016]
[1766963384922,0.02480465,87784.0,87767.0,0.0114016]
[1766963385125,0.011397,87804.0,87781.0,0.0113999]
[1766963385426,0.10292812,87791.0,87776.0,0.04224]
[1766963385626,0.10292812,87791.0,87774.0,0.1655608]
[1766963385928,0.05724,87794.0,87774.0,0.1655608]
[1766963386125,0.05724,87794.0,87777.0,0.0114004]
[1766963386428,0.05724,87794.0,87780.0,0.10292812]
[1766963387929,0.05724,87794.0,87775.0,0.0001709]
[1766963391734,0.05724,87794.0,87776.0,0.0114004]
[1766963392035,0.05724,87794.0,87775.0,0.0001709]
[1766963392233,0.10292812,87790.0,87775.0,0.0001709]
[1766963393332,0.05724,87794.0,87775.0,0.0001709]
[1766963395035,0.10292812,87790.0,87775.0,0.0001709]
[1766963396326,0.05724,87794.0,87775.0,0.0001709]
[1766963397129,0.0247232,87793.0,87775.0,0.0001709]
[1766963397335,0.0247232,87792.0,87775.0,0.0001709]
[1766963397531,0.0247232,87791.0,87775.0,0.0001709]
[1766963397733,0.0247232,87790.0,87775.0,0.0001709]
[1766963398038,0.05724,87794.0,87775.0,0.0001709]
[1766963398238,0.02472242,87793.0,87775.0,0.0001709]
[1766963398435,0.02472242,87792.0,87775.0,0.0001709]
[1766963398639,0.02472242,87791.0,87775.0,0.0001709]
[1766963398832,0.02472242,87790.0,87775.0,0.0001709]
[1766963399138,0.0686383,87794.0,87775.0,0.0001709]
[1766963399333,0.02472097,87793.0,87775.0,0.0001709]
[1766963399533,0.02472097,87792.0,87775.0,0.0001709]
[1766963399733,0.02472097,87791.0,87775.0,0.0001709]
[1766963400040,0.0686383,87794.0,87775.0,0.0001709]
[1766963400041,0.02472097,87790.0,87775.0,0.0001709]
[1766963400234,0.0686383,87794.0,87775.0,0.0001709]
[1766963400539,0.02472024,87793.0,87775.0,0.0001709]
[1766963400736,0.0686383,87794.0,87775.0,0.0001709]
[1766963400737,0.02472024,87792.0,87775.0,0.0001709]
[1766963400936,0.02472024,87791.0,87775.0,0.0001709]
[1766963401238,0.02472024,87790.0,87775.0,0.0001709]
[1766963401434,0.0686383,87794.0,87774.0,0.0821609]
[1766963401435,0.05724,87794.0,87774.0,0.0821609]
[1766963401736,0.0113995,87785.0,87767.0,0.03624]
[1766963401928,0.08195995,87784.0,87763.0,0.05724]
[1766963402132,0.0113997,87783.0,87763.0,0.05724]
[1766963402430,0.25076553,87816.0,87763.0,0.05724]
[1766963402431,0.09692,87796.0,87776.0,0.0114005]
[1766963402637,0.08213216,87795.0,87777.0,0.0001709]
[1766963402832,0.02472126,87794.0,87777.0,0.0001709]
[1766963403032,0.02472126,87793.0,87777.0,0.0001709]
[1766963403234,0.02472126,87792.0,87777.0,0.0001709]
[1766963403432,0.02472126,87791.0,87777.0,0.0001709]
[1766963403641,0.02472126,87790.0,87777.0,0.0001709]
[1766963403854,0.02472126,87789.0,87777.0,0.0001709]
[1766963404033,0.0574109,87795.0,87777.0,0.0001709]
[1766963404235,0.02472219,87794.0,87777.0,0.0001709]
[1766963404430,0.02472219,87793.0,87777.0,0.0001709]
[1766963404632,0.02472219,87792.0,87777.0,0.0001709]
[1766963404940,0.02472219,87791.0,87777.0,0.0001709]
[1766963405131,0.02472219,87790.0,87777.0,0.0001709]
[1766963405331,0.02472219,87789.0,87777.0,0.0001709]
[1766963405531,0.0574109,87795.0,87777.0,0.0001709]
[1766963405732,0.0247945,87794.0,87777.0,0.0001709]
[1766963405935,0.0247945,87793.0,87777.0,0.0001709]
[1766963406132,0.0247945,87792.0,87777.0,0.0001709]
[1766963406341,0.0247945,87791.0,87777.0,0.0001709]
[1766963406542,0.0247945,87790.0,87777.0,0.0001709]
[1766963406738,0.0247945,87789.0,87777.0,0.0001709]
[1766963407042,0.0574109,87795.0,87777.0,0.0001709]
[1766963407244,0.02479625,87794.0,87777.0,0.0001709]
[1766963407428,0.02479625,87793.0,87777.0,0.0001709]
[1766963407633,0.02479625,87792.0,87777.0,0.0001709]
[1766963407834,0.02479625,87791.0,87777.0,0.0001709]
[1766963408133,0.02479625,87790.0,87777.0,0.0001709]
[1766963408332,0.02479625,87789.0,87777.0,0.0001709]
[1766963408534,0.02479625,87788.0,87777.0,0.0001709]
[1766963408735,0.0574109,87795.0,87777.0,0.0001709]
[1766963408944,0.0248007,87794.0,87777.0,0.0001709]
[1766963409144,0.0248007,87793.0,87777.0,0.0001709]
[1766963409444,0.0248007,87792.0,87777.0,0.0001709]
[1766963409741,0.0248007,87791.0,87777.0,0.0001709]
[1766963409941,0.0248007,87790.0,87777.0,0.0001709]
[1766963410144,0.0248007,87789.0,87777.0,0.0001709]
[1766963410344,0.0248007,87788.0,87777.0,0.0001709]
[1766963410536,0.0574109,87795.0,87777.0,0.0001709]
[1766963410736,0.02480576,87794.0,87777.0,0.0001709]
[1766963410934,0.02480576,87793.0,87777.0,0.0001709]
[1766963411133,0.02480576,87792.0,87777.0,0.0001709]
[1766963411333,0.02480576,87791.0,87777.0,0.0001709]
[1766963411534,0.02480576,87790.0,87777.0,0.0001709]
[1766963411737,0.02480576,87789.0,87777.0,0.0001709]
[1766963411934,0.02480576,87788.0,87777.0,0.0001709]
[1766963412135,0.0574109,87795.0,87777.0,0.0001709]
[1766963412335,0.0113996,87784.0,87759.0,0.06127174]
[1766963412539,0.0113996,87784.0,87760.0,0.15416]
[1766963412740,0.0113998,87782.0,87757.0,0.0114029]
[1766963412946,0.09692,87787.0,87761.0,0.05724]
[1766963412947,0.02481342,87781.0,87761.0,0.05724]
[1766963413240,0.0114003,87779.0,87758.0,0.11391338]
[1766963413437,0.05724,87785.0,87756.0,0.15416]
[1766963413438,0.0114006,87776.0,87756.0,0.15416]
[1766963413740,0.02481342,87775.0,87756.0,0.15416]
[1766963413935,0.02481342,87774.0,87756.0,0.15416]
[1766963414130,0.0001709,87777.0,87756.0,0.15416]
[1766963414131,0.02481342,87773.0,87756.0,0.15416]
[1766963414336,0.02481342,87772.0,87756.0,0.09692]
[1766963414537,0.09692,87776.0,87756.0,0.09692]
[1766963414738,0.02480968,87775.0,87756.0,0.09692]
[1766963414943,0.02480968,87774.0,87756.0,0.09692]
[1766963415150,0.02480968,87773.0,87756.0,0.09692]
[1766963415445,0.09692,87776.0,87756.0,0.09692]
[1766963415747,0.02480257,87775.0,87756.0,0.09692]
[1766963416044,0.02480257,87774.0,87756.0,0.09692]
[1766963416244,0.02480257,87773.0,87756.0,0.09692]
[1766963416441,0.09692,87776.0,87756.0,0.09692]
[1766963416632,0.02479715,87775.0,87756.0,0.09692]
[1766963416836,0.0001709,87777.0,87757.0,0.11394063]
[1766963419941,0.0001709,87777.0,87758.0,0.05724]
[1766963420745,0.0001709,87777.0,87758.0,0.0686428]
[1766963425261,0.0001709,87777.0,87762.0,0.0114023]
[1766963426159,0.0001709,87777.0,87758.0,0.0686428]
[1766963430763,0.0001709,87777.0,87760.0,0.0114025]
[1766963433367,0.02468402,87776.0,87760.0,0.0114025]
[1766963433666,0.0001709,87777.0,87760.0,0.0114025]
[1766963433865,0.02468402,87776.0,87760.0,0.0114025]
[1766963434067,0.0001709,87777.0,87760.0,0.0114025]
[1766963434266,0.02468402,87776.0,87760.0,0.0114025]
[1766963434567,0.0001709,87777.0,87760.0,0.0114025]
[1766963434756,0.02468562,87776.0,87760.0,0.0114025]
[1766963434958,0.0001709,87777.0,87760.0,0.0114025]
[1766963435158,0.0250305,87776.0,87760.0,0.0114025]
[1766963435363,0.0001709,87777.0,87766.0,0.0114018]
[1766963438287,0.02503982,87776.0,87766.0,0.0114018]
[1766963438489,0.0001709,87777.0,87768.0,0.0114016]
[1766963438891,0.0001709,87777.0,87770.0,0.0114012]
[1766963439292,1e-07,87777.0,87772.0,0.011401]
[1766963440697,1e-07,87777.0,87769.0,0.0114014]
[1766963441298,0.02505351,87776.0,87769.0,0.0114014]
[1766963441499,1e-07,87777.0,87769.0,0.0114014]
[1766963441800,0.02505351,87776.0,87769.0,0.0114014]
[1766963441994,1e-07,87777.0,87769.0,0.0114014]
[1766963442195,0.02505351,87776.0,87769.0,0.0114014]
[1766963442500,4e-08,87775.0,87769.0,0.0114014]
[1766963442696,1e-07,87777.0,87769.0,0.0114014]
[1766963445499,1e-07,87777.0,87771.0,0.0114011]
[1766963445695,1e-07,87777.0,87773.0,0.0114009]
[1766963445897,0.05724,87786.0,87766.0,0.09692]
[1766963446098,0.05724,87789.0,87766.0,0.09692]
[1766963446601,0.05724,87789.0,87767.0,0.01310333]
[1766963447000,0.0001709,87787.0,87767.0,0.01310333]
[1766963447201,0.0001709,87787.0,87774.0,0.0114007]
[1766963450292,0.06144381,87797.0,87766.0,0.09692]
[1766963450492,0.0572,87796.0,87781.0,0.0113998]
[1766963450799,0.0572,87795.0,87781.0,0.0113998]
[1766963454395,0.02491766,87794.0,87779.0,0.0001709]
[1766963454600,0.02491766,87793.0,87779.0,0.0001709]
[1766963454793,0.02491766,87792.0,87779.0,0.0001709]
[1766963454997,0.02491766,87791.0,87779.0,0.0001709]
[1766963455200,0.0572,87795.0,87779.0,0.0001709]
[1766963455400,0.02491766,87794.0,87780.0,0.0114]
[1766963455600,0.02491766,87793.0,87780.0,0.0114]
[1766963455803,0.02491766,87792.0,87780.0,0.0114]
[1766963456001,0.02491766,87791.0,87780.0,0.0114]
[1766963456202,0.0572,87795.0,87780.0,0.0114]
[1766963456407,0.02491453,87794.0,87780.0,0.0114]
[1766963456608,0.0572,87795.0,87780.0,0.0114]
[1766963456609,0.02491453,87793.0,87780.0,0.0114]
[1766963456809,0.02491453,87792.0,87780.0,0.0114]
[1766963457004,0.02491453,87791.0,87780.0,0.0114]
[1766963457309,0.0572,87795.0,87780.0,0.0114]
[1766963457511,0.02491065,87794.0,87780.0,0.0114]
[1766963457710,0.02491065,87793.0,87780.0,0.0114]
[1766963457911,0.02491065,87792.0,87780.0,0.0114]
[1766963458212,0.02491065,87791.0,87780.0,0.0114]
[1766963458511,0.0572,87795.0,87780.0,0.11430773]
[1766963458703,0.02490925,87794.0,87780.0,0.11430773]
[1766963458903,0.02490925,87793.0,87780.0,0.11430773]
[1766963459100,0.02490925,87792.0,87780.0,0.11430773]
[1766963459300,0.02490925,87791.0,87780.0,0.11430773]
[1766963459503,0.0572,87795.0,87780.0,0.11430773]
[1766963459709,0.02490824,87794.0,87780.0,0.11430773]
[1766963459904,0.02490824,87793.0,87780.0,0.11430773]
[1766963460213,0.02490824,87792.0,87780.0,0.11430773]
[1766963460412,0.0572,87795.0,87780.0,0.11430773]
[1766963460612,0.02490834,87794.0,87780.0,0.11430773]
[1766963460813,0.02490834,87793.0,87780.0,0.11430773]
[1766963461004,0.02490834,87792.0,87780.0,0.11430773]
[1766963461205,4e-08,87791.0,87780.0,0.10290773]
[1766963461515,0.09692,87804.0,87780.0,0.20581546]
[1766963461806,0.09692,87804.0,87791.0,0.0113985]
[1766963462804,0.0113964,87809.0,87791.0,0.0113985]
[1766963463004,0.0572,87808.0,87791.0,0.0113985]
[1766963463406,0.0572,87808.0,87798.0,0.10290773]
[1766963463601,0.0572,87808.0,87790.0,0.10290773]
[1766963464515,0.0572,87808.0,87790.0,0.11430633]
[1766963464913,0.10290773,87820.0,87790.0,0.11430633]
[1766963464914,0.06144381,87818.0,87798.0,0.10290773]
[1766963465107,0.0113954,87816.0,87799.0,0.0001709]
[1766963465308,0.0572,87815.0,87803.0,0.011397]
[1766963466019,0.0572,87815.0,87799.0,0.0001709]
[1766963466212,0.0572,87815.0,87800.0,0.10290773]
[1766963469310,0.06144381,87828.0,87805.0,0.10290773]
[1766963469519,0.0113943,87825.0,87808.0,0.10290773]
[1766963469814,0.0572,87824.0,87808.0,0.10290773]
[1766963470718,0.0572,87824.0,87808.0,0.11430413]
[1766963473313,0.02474236,87823.0,87808.0,0.11430413]
[1766963473613,0.0572,87824.0,87808.0,0.11430413]
[1766963473818,0.0152,87824.0,87808.0,0.11430413]
[1766963474315,0.0152,87824.0,87814.0,0.10290773]
[1766963474806,0.0152,87824.0,87810.0,0.10290773]
[1766963475003,0.0152,87824.0,87814.0,0.10290773]
[1766963475416,0.0152,87824.0,87810.0,0.10290773]
[1766963475614,0.0113972,87803.0,87773.0,0.00227862]
[1766963475819,0.0572,87805.0,87783.0,0.0113996]
[1766963476114,0.0113977,87798.0,87784.0,0.0572]
[1766963476318,0.0113977,87798.0,87775.0,0.0114006]
[1766963476516,0.0113979,87797.0,87776.0,0.15408]
[1766963476708,0.0001709,87795.0,87778.0,0.0001709]
[1766963477124,0.0001709,87795.0,87780.0,0.10290773]
[1766963477613,0.0001709,87795.0,87778.0,0.0001709]
[1766963478920,0.0001709,87795.0,87781.0,0.0113998]
[1766963479117,0.0001709,87795.0,87780.0,0.10290773]
[1766963484414,0.0001709,87795.0,87780.0,0.11430773]
[1766963485121,0.0572,87800.0,87780.0,0.11430773]
[1766963486925,0.02466753,87799.0,87780.0,0.11430773]
[1766963487117,0.16010773,87800.0,87780.0,0.11430773]
[1766963487316,0.02466753,87799.0,87780.0,0.11430773]
[1766963487519,0.16010773,87800.0,87780.0,0.11430773]
[1766963487722,0.02466902,87799.0,87780.0,0.11430773]
[1766963488026,0.0572,87800.0,87780.0,0.11430773]
[1766963488223,0.02466902,87799.0,87780.0,0.11430773]
[1766963488421,0.02466902,87798.0,87780.0,0.11430773]
[1766963488615,0.16010773,87800.0,87780.0,0.11430773]
[1766963488817,0.02467056,87799.0,87780.0,0.11430773]
[1766963489014,0.02467056,87798.0,87780.0,0.11430773]
[1766963489309,0.16010773,87800.0,87780.0,0.11430773]
[1766963489513,0.02467218,87799.0,87780.0,0.11430773]
[1766963489719,0.02467218,87798.0,87780.0,0.0114]
[1766963490027,0.16010773,87800.0,87780.0,0.11430773]
[1766963490227,0.02467218,87799.0,87780.0,0.11430773]
[1766963490524,0.02467218,87798.0,87780.0,0.11430773]
[1766963490726,0.16010773,87800.0,87780.0,0.11430773]
[1766963490927,0.02467268,87799.0,87780.0,0.11430773]
[1766963491125,0.02467268,87798.0,87782.0,0.0113997]
[1766963491327,0.16010773,87800.0,87783.0,0.0572]
[1766963491528,0.02467378,87799.0,87783.0,0.0572]
[1766963491727,0.02467378,87798.0,87783.0,0.0572]
[1766963491929,0.16010773,87800.0,87783.0,0.0572]
[1766963492230,0.02467378,87799.0,87783.0,0.0572]
[1766963492528,0.02467378,87798.0,87783.0,0.0572]
[1766963492827,0.16010773,87800.0,87783.0,0.0572]
[1766963493024,0.02467322,87799.0,87783.0,0.0572]
[1766963493226,0.02467322,87798.0,87783.0,0.0572]
[1766963493525,0.16010773,87800.0,87784.0,0.0113995]
[1766963493824,0.02467268,87799.0,87784.0,0.0113995]
[1766963494128,0.02467268,87798.0,87784.0,0.0113995]
[1766963494330,0.16010773,87800.0,87783.0,0.0572]
[1766963494628,0.024672,87799.0,87783.0,0.0572]
[1766963494828,0.024672,87798.0,87783.0,0.0572]
[1766963495131,0.16010773,87800.0,87783.0,0.0572]
[1766963495330,0.02437417,87799.0,87783.0,0.0572]
[1766963495531,0.16010773,87800.0,87783.0,0.0572]
[1766963495831,0.02437378,87799.0,87783.0,0.0572]
[1766963496033,0.16010773,87800.0,87783.0,0.0572]
[1766963496230,0.02437378,87799.0,87783.0,0.0572]
[1766963496430,0.16010773,87800.0,87783.0,0.0572]
[1766963496632,0.02437392,87799.0,87783.0,0.0572]
[1766963496831,0.16010773,87800.0,87783.0,0.0572]
[1766963497131,0.02437392,87799.0,87783.0,0.0572]
[1766963497333,0.16010773,87800.0,87783.0,0.0572]
[1766963497628,0.02437425,87799.0,87783.0,0.0572]
[1766963497829,0.16010773,87800.0,87783.0,0.0572]
[1766963498031,0.02437425,87799.0,87783.0,0.0572]
[1766963498222,0.16010773,87800.0,87783.0,0.0572]
[1766963498424,0.02437425,87799.0,87783.0,0.0572]
[1766963498622,0.16010773,87800.0,87783.0,0.0685995]
[1766963498831,0.02437483,87799.0,87783.0,0.0685995]
[1766963499030,0.16010773,87800.0,87783.0,0.0685995]
[1766963499232,0.02437483,87799.0,87783.0,0.0685995]
[1766963499430,0.02437628,87798.0,87783.0,0.0685995]
[1766963499630,0.16010773,87800.0,87783.0,0.0685995]
[1766963499831,0.02437628,87799.0,87783.0,0.0685995]
[1766963500031,0.02437628,87798.0,87783.0,0.0685995]
[1766963500233,0.16010773,87800.0,87783.0,0.0685995]
[1766963500531,0.02437628,87799.0,87783.0,0.0685995]
[1766963500732,0.02437628,87798.0,87783.0,0.0685995]
[1766963500933,0.16010773,87800.0,87783.0,0.0685995]
[1766963501134,0.02437987,87799.0,87783.0,0.0685995]
[1766963501330,0.02437987,87798.0,87783.0,0.0685995]
[1766963501530,0.0572,87800.0,87783.0,0.0685995]
[1766963501732,0.0113972,87803.0,87783.0,0.0685995]
[1766963501733,0.02438467,87799.0,87783.0,0.0685995]
[1766963501935,0.02438467,87798.0,87783.0,0.0685995]
[1766963502135,0.0572,87799.0,87783.0,0.0685995]
[1766963502335,0.02438467,87798.0,87783.0,0.0685995]
[1766963502527,0.0572,87799.0,87783.0,0.0685995]
[1766963502528,0.02438467,87797.0,87783.0,0.0685995]
[1766963502832,0.0572,87799.0,87783.0,0.0685995]
[1766963503035,0.02439118,87798.0,87783.0,0.0685995]
[1766963503334,0.02439118,87797.0,87783.0,0.0685995]
[1766963503536,0.0572,87799.0,87783.0,0.0685995]
[1766963504637,0.0572,87801.0,87783.0,0.0572]
[1766963504832,0.0572,87801.0,87788.0,0.011399]
[1766963505032,0.15412,87803.0,87783.0,0.0572]
[1766963507337,0.15412,87803.0,87787.0,0.011399]
[1766963510246,0.0113995,87784.0,87766.0,0.0114018]
[1766963510553,0.0113998,87782.0,87767.0,0.0572]
[1766963510752,0.10290773,87780.0,87767.0,0.0572]
[1766963510953,0.10290773,87780.0,87768.0,0.01310333]
[1766963511252,0.0001709,87783.0,87768.0,0.01310333]
[1766963511451,0.0001709,87783.0,87767.0,0.0572]
[1766963513554,0.10290773,87780.0,87767.0,0.0572]
[1766963513949,0.10290773,87780.0,87765.0,0.0001709]
[1766963515354,0.0572,87779.0,87765.0,0.0001709]
[1766963517452,0.10290773,87775.0,87762.0,0.15412]
[1766963517755,0.0572,87779.0,87762.0,0.15412]
[1766963518553,0.0572,87779.0,87762.0,0.1542909]
[1766963519449,0.15412,87779.0,87762.0,0.1542909]
[1766963520359,0.15412,87779.0,87750.0,0.10290773]
[1766963520360,0.11430883,87772.0,87754.0,0.09692]
[1766963520551,0.0572,87771.0,87754.0,0.15412]
[1766963520946,0.0114014,87770.0,87754.0,0.15412]
[1766963521150,0.0114014,87770.0,87746.0,0.0114043]
[1766963521151,0.0114017,87768.0,87746.0,0.0114043]
[1766963521352,0.0114017,87768.0,87748.0,0.0573709]
[1766963521762,0.0114022,87764.0,87748.0,0.0573709]
[1766963521953,0.0572,87763.0,87748.0,0.0573709]
[1766963522147,0.0572,87763.0,87738.0,0.1083254]
[1766963522148,0.0114024,87762.0,87738.0,0.1083254]
[1766963522455,0.0001709,87765.0,87743.0,0.0136842]
[1766963522957,0.15412,87764.0,87743.0,0.0136842]
[1766963523157,0.15412,87764.0,87745.0,0.0001709]
[1766963523349,0.0572,87763.0,87745.0,0.0001709]
[1766963525760,0.0572,87762.0,87745.0,0.0115754]
[1766963528066,0.0001709,87765.0,87745.0,0.0001709]
[1766963528250,0.0113966,87807.0,87757.0,0.011403]
[1766963528251,0.013106,87781.0,87757.0,0.011403]
[1766963528453,0.17824026,87780.0,87757.0,0.011403]
[1766963528758,0.12104026,87779.0,87753.0,0.0114035]
[1766963528955,0.02412026,87778.0,87753.0,0.0114035]
[1766963529155,0.0001709,87774.0,87757.0,0.0001709]
[1766963529553,0.0114013,87771.0,87750.0,0.0114039]
[1766963529765,0.0572,87770.0,87750.0,0.0114039]
[1766963530658,0.0572,87770.0,87751.0,0.0001709]
[1766963532368,0.0572,87770.0,87754.0,0.0114033]
[1766963538663,0.0572,87770.0,87751.0,0.0001709]
[1766963539158,0.0001709,87774.0,87752.0,0.11394453]
[1766963539363,0.0113997,87783.0,87763.0,0.0114022]
[1766963539558,0.0113997,87783.0,87752.0,0.11394453]
[1766963539559,0.0114,87781.0,87760.0,0.0114026]
[1766963539773,0.0572,87783.0,87763.0,0.0114022]
[1766963540162,0.0685997,87783.0,87763.0,0.0114022]
[1766963540373,0.0113999,87781.0,87764.0,0.0001709]
[1766963542970,0.0001709,87782.0,87764.0,0.011573]
[1766963543168,0.0001709,87782.0,87765.0,0.0114019]
[1766963543368,0.0001709,87782.0,87764.0,0.0001709]
[1766963543668,0.07284181,87796.0,87774.0,0.0114008]
[1766963543871,0.0113983,87794.0,87774.0,0.0114008]
[1766963544072,0.09692,87793.0,87774.0,0.0114008]
[1766963544573,0.09692,87793.0,87770.0,0.11439551]
[1766963544776,0.0001709,87790.0,87770.0,0.0114012]
[1766963545270,0.0001709,87790.0,87773.0,0.0114009]
[1766963545465,0.0001709,87790.0,87776.0,0.0114005]
[1766963550074,0.0001709,87790.0,87778.0,0.0114002]